bitfinex/quotes_BTCUSD_20241215
["timestamp","ask_amount","ask_price","bid_price","bid_amount"]
[1734233953443,0.32414011,101700.0,101690.0,1.40481896]
[1734233954040,0.32414011,101700.0,101690.0,1.40481897]
[1734233954635,0.32414011,101700.0,101690.0,1.40481839]
[1734233954821,0.32414011,101700.0,101690.0,1.40455492]
[1734233955661,0.40284011,101700.0,101690.0,1.40455492]
[1734233956038,0.40284011,101700.0,101690.0,1.53699108]
[1734233959256,0.40284011,101700.0,101690.0,1.53699615]
[1734233962303,0.40284011,101700.0,101690.0,1.37521053]
[1734233962497,0.40284011,101700.0,101690.0,1.53699615]
[1734233963333,0.40284011,101700.0,101690.0,1.62528441]
[1734233963985,0.40284011,101700.0,101690.0,1.53699615]
[1734233964594,0.40284011,101700.0,101690.0,1.62528375]
[1734233964802,0.40284011,101700.0,101690.0,1.3644441]
[1734233965008,0.40284011,101700.0,101690.0,1.52622972]
[1734233967466,0.40284011,101700.0,101690.0,1.43794212]
[1734233968260,0.40284011,101700.0,101690.0,1.43830152]
[1734233969085,0.40284011,101700.0,101690.0,1.40492661]
[1734233970199,0.40284011,101700.0,101690.0,1.22835469]
[1734233970546,0.40284011,101700.0,101690.0,1.22841521]
[1734233971073,0.40284011,101700.0,101690.0,7.96986521]
[1734233976174,0.40284011,101700.0,101690.0,8.39383963]
[1734233978095,0.40284011,101700.0,101690.0,8.65867913]
[1734233979519,0.40284011,101700.0,101690.0,8.43797955]
[1734233979959,0.40284011,101700.0,101690.0,8.65875409]
[1734233980159,0.40284011,101700.0,101690.0,8.43797955]
[1734233987557,0.40284011,101700.0,101690.0,8.27619393]
[1734233987776,0.40284011,101700.0,101690.0,8.43797955]
[1734233988203,0.40284011,101700.0,101690.0,8.65894677]
[1734233989071,0.40284011,101700.0,101690.0,7.97013285]
[1734233990359,0.40284011,101700.0,101690.0,7.44629402]
[1734233990535,0.40284011,101700.0,101690.0,7.9704866]
[1734233993004,0.40284011,101700.0,101690.0,7.80870098]
[1734233993309,0.40284011,101700.0,101690.0,7.9704866]
[1734233997172,0.40284011,101700.0,101690.0,8.14725604]
[1734233997957,0.40284011,101700.0,101690.0,7.9704866]
[1734233998195,0.40284011,101700.0,101690.0,8.14725435]
[1734234002699,0.40284011,101700.0,101690.0,8.43973276]
[1734234003732,0.32414011,101700.0,101690.0,8.43973276]
[1734234006269,0.32414011,101700.0,101690.0,8.44028581]
[1734234007243,0.27734011,101700.0,101690.0,8.44028581]
[1734234009208,0.27734011,101700.0,101690.0,8.83176481]
[1734234009414,0.27734011,101700.0,101690.0,8.44028581]
[1734234010223,0.27734011,101700.0,101690.0,9.86648662]
[1734234010433,0.27734011,101700.0,101690.0,9.52046518]
[1734234013111,0.27734011,101700.0,101690.0,9.21021818]
[1734234013324,0.27734011,101700.0,101690.0,9.18323318]
[1734234013474,0.27734011,101700.0,101690.0,9.26412599]
[1734234013679,0.27734011,101700.0,101690.0,9.18323318]
[1734234013898,0.27734011,101700.0,101690.0,9.26412599]
[1734234014628,0.27734011,101700.0,101690.0,9.25887742]
[1734234018066,0.27734011,101700.0,101690.0,9.27865723]
[1734234018270,0.27734011,101700.0,101690.0,9.27890054]
[1734234018647,0.27734011,101700.0,101690.0,8.78900354]
[1734234018865,0.27734011,101700.0,101690.0,9.1589933]
[1734234019065,0.27734011,101700.0,101690.0,9.06064358]
[1734234022482,0.27056011,101700.0,101690.0,9.40636284]
[1734234023416,0.27056011,101700.0,101690.0,9.40714479]
[1734234025234,0.27056011,101700.0,101690.0,9.01612027]
[1734234027755,0.27056011,101700.0,101690.0,9.01589794]
[1734234030831,0.27056011,101700.0,101690.0,10.77254929]
[1734234031760,0.27056011,101700.0,101690.0,10.52050414]
[1734234031961,0.27056011,101700.0,101690.0,10.16950414]
[1734234032596,0.27056011,101700.0,101690.0,10.56041107]
[1734234034290,0.17223011,101700.0,101690.0,10.20501437]
[1734234034497,0.17223011,101700.0,101690.0,10.28091437]
[1734234034707,0.17223011,101700.0,101690.0,10.20501437]
[1734234034880,0.17223011,101700.0,101690.0,10.28091437]
[1734234035088,0.07390011,101700.0,101690.0,10.28091437]
[1734234035643,0.07390011,101700.0,101690.0,9.71877101]
[1734234035850,0.07390011,101700.0,101690.0,10.25227101]
[1734234036051,0.03456811,101700.0,101690.0,10.32817101]
[1734234036224,1.1e-07,101700.0,101690.0,10.32817101]
[1734234036490,1.1e-07,101700.0,101690.0,9.19897537]
[1734234037317,1.1e-07,101700.0,101690.0,8.81107537]
[1734234037520,1.1e-07,101700.0,101690.0,9.19897537]
[1734234038613,1.1e-07,101700.0,101690.0,8.66547537]
[1734234039940,1.1e-07,101700.0,101690.0,8.58957537]
[1734234040876,1.1e-07,101700.0,101690.0,8.58934121]
[1734234041080,1.1e-07,101700.0,101690.0,8.56308334]
[1734234041923,1.1e-07,101700.0,101690.0,9.09658334]
[1734234045101,1.1e-07,101700.0,101690.0,9.22271158]
[1734234046190,1.1e-07,101700.0,101690.0,9.82643924]
[1734234048532,1.1e-07,101700.0,101690.0,9.43564847]
[1734234049608,1.1e-07,101700.0,101690.0,9.43747157]
[1734234051285,1.1e-07,101700.0,101690.0,9.82850373]
[1734234051485,1.1e-07,101700.0,101690.0,9.43747157]
[1734234053884,1.1e-07,101700.0,101690.0,9.43832041]
[1734234055425,1.1e-07,101700.0,101690.0,9.46457828]
[1734234058444,1.1e-07,101700.0,101690.0,9.46479331]
[1734234061019,1.1e-07,101700.0,101690.0,9.31919331]
[1734234061240,1.1e-07,101700.0,101690.0,8.93129331]
[1734234061452,1.1e-07,101700.0,101690.0,9.50402078]
[1734234062343,1.1e-07,101700.0,101690.0,9.35842078]
[1734234062552,1.1e-07,101700.0,101690.0,8.97052078]
[1734234064695,0.08230011,101700.0,101690.0,8.97052078]
[1734234064900,0.08230011,101700.0,101690.0,11.38708078]
[1734234066111,0.08230011,101700.0,101690.0,11.91983616]
[1734234067688,0.08230011,101700.0,101690.0,11.35813416]
[1734234068523,0.08230011,101700.0,101690.0,10.82463416]
[1734234070463,0.08230011,101700.0,101690.0,10.82471744]
[1734234071934,0.08230011,101700.0,101690.0,11.35821744]
[1734234075081,0.08230011,101700.0,101690.0,11.35820921]
[1734234080523,0.08230011,101700.0,101690.0,11.65644346]
[1734234081208,0.13110011,101700.0,101690.0,9.64449391]
[1734234081408,0.13110011,101700.0,101690.0,8.78306654]
[1734234081818,0.13110011,101700.0,101690.0,8.65659727]
[1734234082023,0.13110011,101700.0,101690.0,8.81838289]
[1734234082440,0.13110011,101700.0,101690.0,8.5009055]
[1734234083422,0.13110011,101700.0,101690.0,8.67755906]
[1734234083580,0.13110011,101700.0,101690.0,8.41671941]
[1734234083801,0.13110011,101700.0,101690.0,8.49761222]
[1734234084000,0.13110011,101700.0,101690.0,8.18082191]
[1734234085584,0.13110011,101700.0,101690.0,8.26909793]
[1734234087141,0.13110011,101700.0,101690.0,8.18820512]
[1734234087394,0.13110011,101700.0,101690.0,7.96730682]
[1734234087817,0.13110011,101700.0,101690.0,7.96899645]
[1734234088249,0.13110011,101700.0,101690.0,7.88810364]
[1734234088476,0.13110011,101700.0,101690.0,7.96899645]
[1734234090835,0.13110011,101700.0,101690.0,7.96912464]
[1734234091450,0.13110011,101700.0,101690.0,7.79271998]
[1734234095228,0.13110011,101700.0,101690.0,7.70263388]
[1734234095452,0.13110011,101700.0,101690.0,7.43813542]
[1734234095608,0.13110011,101700.0,101690.0,7.74292331]
[1734234096036,0.13110011,101700.0,101690.0,7.79292331]
[1734234096472,0.13110011,101700.0,101690.0,7.48813542]
[1734234096667,0.13110011,101700.0,101690.0,7.48802798]
[1734234098491,0.13110011,101700.0,101690.0,7.35578895]
[1734234101100,0.13110011,101700.0,101690.0,7.35577509]
[1734234102563,0.13110011,101700.0,101690.0,7.26568899]
[1734234102772,0.13110011,101700.0,101690.0,7.30577509]
[1734234103153,0.13110011,101700.0,101690.0,7.26568899]
[1734234103355,0.13110011,101700.0,101690.0,7.30577509]
[1734234105651,0.13110011,101700.0,101690.0,7.30717491]
[1734234107330,0.13110011,101700.0,101690.0,7.30717329]
[1734234108996,0.13110011,101700.0,101690.0,7.4380661]
[1734234109613,0.13110011,101700.0,101690.0,7.34992223]
[1734234109814,0.13110011,101700.0,101690.0,7.57029938]
[1734234110657,0.13110011,101700.0,101690.0,7.87477699]
[1734234112536,0.13110011,101700.0,101690.0,7.79388418]
[1734234113780,0.13110011,101700.0,101690.0,7.81319349]
[1734234113996,0.13110011,101700.0,101690.0,7.81321765]
[1734234114422,0.13110011,101700.0,101690.0,7.79390834]
[1734234117468,0.13110011,101700.0,101690.0,7.97024835]
[1734234121416,0.13110011,101700.0,101690.0,8.19067337]
[1734234123469,0.13110011,101700.0,101690.0,8.10250337]
[1734234125485,0.13110011,101700.0,101690.0,7.97024836]
[1734234126511,0.13110011,101700.0,101690.0,7.79390835]
[1734234127560,0.13110011,101700.0,101690.0,8.2667659]
[1734234133663,0.13110011,101700.0,101690.0,8.26860336]
[1734234149521,1.1e-07,101700.0,101690.0,8.4485502]
[1734234149772,1.1e-07,101700.0,101690.0,8.55432836]
[1734234150870,1.1e-07,101700.0,101690.0,8.5523991]
[1734234151103,1.1e-07,101700.0,101690.0,8.55239911]
[1734234153279,1.1e-07,101700.0,101690.0,8.52632095]
[1734234155116,1.1e-07,101700.0,101690.0,8.52613207]
[1734234155343,1.1e-07,101700.0,101690.0,8.65250407]
[1734234156314,1.1e-07,101700.0,101690.0,8.78339688]
[1734234157550,1.1e-07,101700.0,101690.0,8.80267153]
[1734234160149,1.1e-07,101700.0,101690.0,8.82874969]
[1734234160343,1.1e-07,101700.0,101690.0,8.85277051]
[1734234163733,1.1e-07,101700.0,101690.0,8.85121096]
[1734234164940,1.1e-07,101700.0,101690.0,8.84761214]
[1734234165146,1.1e-07,101700.0,101690.0,9.38111214]
[1734234168124,1.1e-07,101700.0,101690.0,8.84761214]
[1734234169388,1.1e-07,101700.0,101690.0,8.52523371]
[1734234169598,1.1e-07,101700.0,101690.0,8.63692035]
[1734234169799,0.08200011,101700.0,101690.0,8.5275596]
[1734234170011,0.08200011,101700.0,101690.0,8.88227642]
[1734234171075,0.08200011,101700.0,101690.0,8.49131185]
[1734234171281,0.12760011,101700.0,101690.0,8.44131185]
[1734234171485,0.12760011,101700.0,101690.0,8.49131185]
[1734234171709,0.12760011,101700.0,101690.0,8.44131185]
[1734234173716,0.12760011,101700.0,101690.0,8.55507185]
[1734234174299,0.12760011,101700.0,101690.0,8.44131185]
[1734234178107,0.12760011,101700.0,101690.0,8.54828282]
[1734234178312,0.04560011,101700.0,101690.0,8.56470979]
[1734234178561,0.04560011,101700.0,101690.0,8.48381698]
[1734234180110,0.04560011,101700.0,101690.0,8.46739001]
[1734234181581,0.04560011,101700.0,101690.0,8.44131185]
[1734234181791,0.12760011,101700.0,101690.0,8.44131185]
[1734234193529,0.12760011,101700.0,101690.0,8.44290213]
[1734234194082,0.12760011,101700.0,101690.0,8.67227105]
[1734234194332,0.12760011,101700.0,101690.0,8.83405667]
[1734234197071,0.12760011,101700.0,101690.0,8.67227105]
[1734234197287,0.12760011,101700.0,101690.0,8.56914778]
[1734234206832,0.12760011,101700.0,101690.0,8.57177234]
[1734234207452,0.12760011,101700.0,101690.0,8.3918255]
[1734234207807,0.12760011,101700.0,101690.0,8.47271831]
[1734234207953,0.12760011,101700.0,101690.0,8.34640702]
[1734234208368,0.12760011,101700.0,101690.0,8.47271831]
[1734234208677,0.12760011,101700.0,101690.0,8.34641584]
[1734234209061,0.12760011,101700.0,101690.0,8.47271831]
[1734234209433,0.12760011,101700.0,101690.0,8.34642059]
[1734234211124,0.12760011,101700.0,101690.0,7.34632341]
[1734234211330,0.12760011,101700.0,101690.0,8.345426]
[1734234211530,0.12760011,101700.0,101690.0,8.56633785]
[1734234212010,0.12760011,101700.0,101690.0,8.56569936]
[1734234212240,0.12760011,101700.0,101690.0,8.34478751]
[1734234212458,0.12760011,101700.0,101690.0,8.56569339]
[1734234215882,0.12760011,101700.0,101690.0,8.56644866]
[1734234217248,0.12760011,101700.0,101690.0,8.30137072]
[1734234218297,0.12760011,101700.0,101690.0,7.87274467]
[1734234218695,0.12760011,101700.0,101690.0,7.91205767]
[1734234220024,0.12760011,101700.0,101690.0,7.87274467]
[1734234222217,0.12760011,101700.0,101690.0,8.04941131]
[1734234236209,0.12760011,101700.0,101690.0,7.82010634]
[1734234236409,0.12760011,101700.0,101690.0,7.90099915]
[1734234237380,0.12760011,101700.0,101690.0,8.05099915]
[1734234238111,0.12760011,101700.0,101690.0,8.05055528]
[1734234238515,0.12760011,101700.0,101690.0,7.96966247]
[1734234238770,0.12760011,101700.0,101690.0,8.05055528]
[1734234241236,0.12760011,101700.0,101690.0,8.05074606]
[1734234242637,0.12760011,101700.0,101690.0,8.13163887]
[1734234244165,0.12760011,101700.0,101690.0,8.18163887]
[1734234244363,0.12760011,101700.0,101690.0,8.04915288]
[1734234244565,0.12760011,101700.0,101690.0,7.87250489]
[1734234244730,0.12760011,101700.0,101690.0,8.56529818]
[1734234245174,0.12760011,101700.0,101690.0,8.56430004]
[1734234246789,0.12760011,101700.0,101690.0,8.34347908]
[1734234249533,0.12760011,101700.0,101690.0,8.34303299]
[1734234253030,0.12760011,101700.0,101690.0,8.34338868]
[1734234262582,0.12760011,101700.0,101690.0,7.34568492]
[1734234262779,0.12760011,101700.0,101690.0,8.34328262]
[1734234264035,0.12760011,101700.0,101690.0,8.33995505]
[1734234264214,0.12760011,101700.0,101690.0,8.34353835]
[1734234271419,0.12760011,101700.0,101690.0,8.34361431]
[1734234271699,0.12760011,101700.0,101690.0,8.3436193]
[1734234272408,0.12760011,101700.0,101690.0,8.44267333]
[1734234272606,0.04560011,101700.0,101690.0,8.46875149]
[1734234273374,1.1e-07,101700.0,101690.0,8.94117647]
[1734234273570,1.1e-07,101700.0,101690.0,8.77846261]
[1734234275588,1.1e-07,101700.0,101690.0,8.77753176]
[1734234279956,1.1e-07,101700.0,101690.0,8.77684169]
[1734234284324,1.1e-07,101700.0,101690.0,8.77603644]
[1734234285157,1.1e-07,101700.0,101690.0,8.82603644]
[1734234288764,1.1e-07,101700.0,101690.0,8.82332823]
[1734234293161,1.1e-07,101700.0,101690.0,8.82134555]
[1734234298640,1.1e-07,101700.0,101690.0,8.74304555]
[1734234302115,1.1e-07,101700.0,101690.0,8.71889477]
[1734234305443,1.1e-07,101700.0,101690.0,8.74047887]
[1734234308760,0.07840011,101700.0,101690.0,8.74047887]
[1734234308966,0.07840011,101700.0,101690.0,10.59077587]
[1734234311576,0.07840011,101700.0,101690.0,11.19575467]
[1734234313189,1.1e-07,101700.0,101690.0,10.61851361]
[1734234313392,0.02743611,101710.0,101700.0,4.4169201]
[1734234313638,0.02743611,101710.0,101700.0,5.50593093]
[1734234313830,0.0001724,101730.0,101720.0,0.2400861]
[1734234313963,0.0001724,101730.0,101720.0,4.08551742]
[1734234314167,0.0001724,101730.0,101720.0,4.09163854]
[1734234314411,0.0001724,101730.0,101720.0,4.09157904]
[1734234314633,0.0001724,101730.0,101720.0,3.8709586]
[1734234315574,0.0001724,101730.0,101720.0,4.30104304]
[1734234315918,0.0001724,101730.0,101720.0,4.31091826]
[1734234316282,0.0001724,101730.0,101720.0,4.5856094]
[1734234316492,0.0001724,101730.0,101720.0,4.6356094]
[1734234316703,0.0001724,101730.0,101720.0,4.61118616]
[1734234316907,4e-07,101730.0,101720.0,4.73948616]
[1734234317109,4e-07,101730.0,101720.0,1.95557316]
[1734234317320,4e-07,101730.0,101720.0,1.52548872]
[1734234317536,0.04039009,101740.0,101730.0,0.0900861]
[1734234317739,0.04039009,101740.0,101730.0,3.53920788]
[1734234317939,0.04039009,101740.0,101730.0,4.27690028]
[1734234318145,0.0786,101750.0,101740.0,0.2400861]
[1734234318344,0.0795895,101760.0,101750.0,0.4366461]
[1734234318572,0.0795895,101760.0,101750.0,2.48997556]
[1734234318779,0.0786,101760.0,101750.0,2.50661188]
[1734234319591,0.0786,101760.0,101750.0,2.37438586]
[1734234320348,0.0786,101760.0,101750.0,2.50661188]
[1734234320608,0.1237724,101770.0,101760.0,0.0900861]
[1734234320833,0.1237724,101770.0,101760.0,0.80300969]
[1734234321037,0.1237724,101770.0,101760.0,0.80202714]
[1734234321233,0.1237724,101770.0,101760.0,0.80811476]
[1734234321443,0.1237724,101770.0,101760.0,0.87246876]
[1734234322410,0.1237724,101770.0,101760.0,0.87242037]
[1734234322613,0.1237724,101770.0,101760.0,0.78444618]
[1734234323026,0.1237724,101770.0,101760.0,0.87242037]
[1734234323438,0.1237724,101770.0,101760.0,1.18592718]
[1734234323846,0.1237724,101770.0,101760.0,1.27390137]
[1734234324492,0.1237724,101770.0,101760.0,1.18592718]
[1734234325308,0.1237724,101770.0,101760.0,1.19586135]
[1734234330352,0.1237724,101770.0,101760.0,0.49176775]
[1734234330612,0.1237724,101770.0,101760.0,0.55449934]
[1734234330858,0.1237724,101770.0,101760.0,0.39271372]
[1734234331088,0.1237724,101770.0,101760.0,0.55449934]
[1734234336180,0.1237724,101770.0,101760.0,0.39271372]
[1734234336383,0.1237724,101770.0,101760.0,0.55449934]
[1734234336799,0.1237724,101770.0,101760.0,0.47360653]
[1734234337425,0.1237724,101770.0,101760.0,0.73444618]
[1734234337839,0.1237724,101770.0,101760.0,0.65355337]
[1734234340369,0.1237724,101770.0,101760.0,0.70355337]
[1734234342645,0.1237724,101770.0,101760.0,0.65355337]
[1734234346940,0.1237724,101770.0,101760.0,0.49176775]
[1734234347129,0.3202934,101770.0,101760.0,0.19617372]
[1734234347283,0.3202934,101770.0,101760.0,0.27706653]
[1734234354268,0.3202934,101770.0,101760.0,0.12706653]
[1734234360742,0.44234743,101770.0,101760.0,0.04617372]
[1734234360973,0.44234743,101770.0,101760.0,0.00608762]
[1734234361405,0.45715646,101770.0,101760.0,0.00608762]
[1734234361608,0.54496794,101770.0,101760.0,0.00608762]
[1734234363507,0.45715646,101770.0,101760.0,0.00608762]
[1734234367778,0.45715646,101770.0,101760.0,0.08698043]
[1734234368197,0.45715646,101770.0,101760.0,0.00608762]
[1734234371880,0.47638865,101770.0,101760.0,0.00608762]
[1734234374809,0.52638865,101770.0,101760.0,0.00608762]
[1734234375016,0.60728146,101770.0,101760.0,0.00608762]
[1734234375423,0.6952516,101770.0,101760.0,0.00608762]
[1734234376969,0.69525208,101770.0,101760.0,0.00608762]
[1734234380551,0.61435927,101770.0,101760.0,0.00608762]
[1734234380758,0.69525208,101770.0,101760.0,0.00608762]
[1734234381174,0.61435927,101770.0,101760.0,0.00608762]
[1734234385568,0.74631521,101770.0,101760.0,0.00608762]
[1734234386726,0.82720802,101770.0,101760.0,0.00608762]
[1734234387628,1.00314927,101770.0,101760.0,0.00608762]
[1734234389501,0.92225646,101770.0,101760.0,0.00608762]
[1734234391467,1.14218303,101770.0,101760.0,0.00608762]
[1734234393554,1.05421241,101770.0,101760.0,0.00608762]
[1734234396966,1.13510522,101770.0,101760.0,0.00608762]
[1734234400425,1.05421241,101770.0,101760.0,0.00608762]
[1734234400623,1.00314928,101770.0,101760.0,0.00608762]
[1734234402627,0.92225647,101770.0,101760.0,0.00608762]
[1734234404494,0.74631522,101770.0,101760.0,0.00608762]
[1734234405537,1.0102271,101770.0,101760.0,0.00608762]
[1734234406155,0.8583953,101770.0,101760.0,0.12706653]
[1734234406364,0.92736321,101770.0,101760.0,0.20546653]
[1734234406573,0.70743664,101770.0,101760.0,0.20546653]
[1734234407385,0.70743664,101770.0,101760.0,0.12457372]
[1734234407592,0.73043664,101770.0,101760.0,0.12457372]
[1734234408421,0.55405128,101770.0,101760.0,0.12457372]
[1734234409464,0.63494409,101770.0,101760.0,0.00608762]
[1734234409669,0.80843664,101770.0,101760.0,0.00608762]
[1734234410905,0.41155646,101770.0,101760.0,0.00608762]
[1734234411118,1.02885888,101770.0,101760.0,0.00608762]
[1734234411524,1.12775888,101770.0,101760.0,0.00608762]
[1734234411777,1.03957282,101770.0,101760.0,0.00608762]
[1734234411984,0.98818654,101770.0,101760.0,0.00608762]
[1734234412194,0.80590745,101770.0,101760.0,0.00608762]
[1734234413024,0.88276634,101770.0,101760.0,0.00608762]
[1734234413234,1.06583611,101770.0,101760.0,0.00608762]
[1734234413434,0.99889112,101770.0,101760.0,0.00608762]
[1734234416054,0.39646,101750.0,101740.0,8.61e-05]
[1734234416358,1.10519422,101750.0,101740.0,8.61e-05]
[1734234416793,0.97811689,101750.0,101740.0,8.61e-05]
[1734234417001,0.95583394,101750.0,101740.0,1e-07]
[1734234417528,1.25346189,101750.0,101740.0,1e-07]
[1734234417731,0.9890682,101750.0,101740.0,1e-07]
[1734234417944,1.44419488,101750.0,101740.0,1e-07]
[1734234418149,1.08812223,101750.0,101740.0,1e-07]
[1734234418358,1.25313736,101750.0,101740.0,1e-07]
[1734234419249,0.3588119,101730.0,101720.0,8.61e-05]
[1734234419438,0.97754975,101730.0,101720.0,8.61e-05]
[1734234419844,1.06566532,101730.0,101720.0,8.61e-05]
[1734234420053,0.85382359,101730.0,101720.0,8.61e-05]
[1734234420494,0.85382359,101730.0,101720.0,0.00019374]
[1734234421550,0.98571109,101730.0,101720.0,0.00019374]
[1734234421998,1.19736093,101730.0,101720.0,0.00019374]
[1734234422205,1.10943431,101730.0,101720.0,0.00019374]
[1734234422616,1.19732445,101730.0,101720.0,0.00019374]
[1734234423035,1.07360123,101730.0,101720.0,0.00019374]
[1734234423253,1.06368733,101730.0,101720.0,0.00019374]
[1734234423459,0.84365271,101730.0,101720.0,0.00019374]
[1734234423691,0.66772967,101730.0,101720.0,0.00524441]
[1734234423930,0.66772967,101730.0,101720.0,0.00019374]
[1734234424378,0.66772967,101730.0,101720.0,0.00524441]
[1734234424576,0.66772967,101730.0,101720.0,0.00019374]
[1734234425184,0.66772967,101730.0,101720.0,0.00524441]
[1734234425396,0.66772967,101730.0,101720.0,0.00019374]
[1734234425661,0.55573945,101730.0,101720.0,0.00524441]
[1734234425865,0.55573945,101730.0,101720.0,0.00019374]
[1734234426071,0.55573945,101730.0,101720.0,0.00524441]
[1734234426280,0.55573945,101730.0,101720.0,0.00019374]
[1734234426717,0.55564772,101730.0,101720.0,0.00019374]
[1734234426932,0.46784931,101730.0,101720.0,0.00019374]
[1734234427136,0.46784931,101730.0,101720.0,0.00524441]
[1734234427348,0.59157253,101730.0,101720.0,0.00524441]
[1734234427766,0.67937094,101730.0,101720.0,0.00524441]
[1734234428242,0.90273702,101730.0,101720.0,0.00524441]
[1734234428445,0.7710394,101730.0,101720.0,0.00524441]
[1734234428654,0.67937094,101730.0,101720.0,0.00524441]
[1734234429522,0.68923283,101730.0,101720.0,0.00524441]
[1734234430570,0.60143442,101730.0,101720.0,0.00524441]
[1734234432250,0.4777112,101730.0,101720.0,0.00524441]
[1734234434647,0.5811112,101730.0,101720.0,0.00524441]
[1734234434886,0.4777112,101730.0,101720.0,0.00524441]
[1734234436901,0.48283649,101730.0,101720.0,0.00524441]
[1734234439139,0.5640194,101730.0,101720.0,0.00524441]
[1734234451187,0.48283649,101730.0,101720.0,0.00524441]
[1734234452360,0.57057733,101730.0,101720.0,0.00524441]
[1734234453718,0.57063265,101730.0,101720.0,0.00524441]
[1734234454474,0.70232689,101730.0,101720.0,0.00524441]
[1734234455326,0.87791921,101730.0,101720.0,0.00524441]
[1734234456475,1.01750961,101730.0,101720.0,0.00524441]
[1734234456699,0.74861921,101730.0,101720.0,0.00524441]
[1734234456911,0.57302689,101730.0,101720.0,0.00524441]
[1734234457345,0.74861921,101730.0,101720.0,0.00524441]
[1734234458298,0.96810961,101730.0,101720.0,0.00524441]
[1734234459333,0.88031345,101730.0,101720.0,0.00524441]
[1734234460433,0.74861921,101730.0,101720.0,0.00524441]
[1734234461500,0.57302689,101730.0,101720.0,0.00524441]
[1734234462286,0.61692497,101730.0,101720.0,0.00524441]
[1734234462860,0.57399052,101730.0,101720.0,0.00524441]
[1734234463260,0.837379,101730.0,101720.0,0.00524441]
[1734234466545,0.57399052,101730.0,101720.0,0.00524441]
[1734234467338,0.57400288,101730.0,101720.0,0.00524441]
[1734234467905,0.83856254,101730.0,101720.0,0.00524441]
[1734234471553,0.83852312,101730.0,101720.0,0.00524441]
[1734234473145,0.83850894,101730.0,101720.0,0.00524441]
[1734234473651,0.57397851,101730.0,101720.0,0.00524441]
[1734234475685,0.35353649,101730.0,101720.0,0.00524441]
[1734234475909,0.57397482,101730.0,101720.0,0.00524441]
[1734234478308,0.83850081,101730.0,101720.0,0.00524441]
[1734234480602,0.61806248,101730.0,101720.0,0.00524441]
[1734234482783,0.83853183,101730.0,101720.0,0.00524441]
[1734234486886,0.81553183,101730.0,101720.0,0.00524441]
[1734234487099,0.7773635,101730.0,101720.0,0.04533051]
[1734234487302,0.77734562,101730.0,101720.0,0.12643051]
[1734234487929,0.99779498,101730.0,101720.0,0.12643051]
[1734234488136,1.02079498,101730.0,101720.0,0.12643051]
[1734234488749,0.80034546,101730.0,101720.0,0.12643051]
[1734234490773,1.02079498,101730.0,101720.0,0.12643051]
[1734234491388,1.02062002,101730.0,101720.0,0.12643051]
[1734234495536,0.97062002,101730.0,101720.0,0.12643051]
[1734234495747,1.02061207,101730.0,101720.0,0.12643051]
[1734234497519,1.02060681,101730.0,101720.0,0.12643051]
[1734234497910,0.93245842,101730.0,101720.0,0.12643051]
[1734234498154,0.93245842,101730.0,101720.0,0.04533051]
[1734234500127,0.93244407,101730.0,101720.0,0.04533051]
[1734234502791,0.88244407,101730.0,101720.0,0.04533051]
[1734234502994,0.93244407,101730.0,101720.0,0.04533051]
[1734234505780,0.97060793,101730.0,101720.0,0.20221342]
[1734234506107,0.75022977,101730.0,101720.0,0.20221342]
[1734234506518,0.57392724,101730.0,101720.0,0.20221342]
[1734234507573,0.57392724,101730.0,101720.0,0.12103051]
[1734234508500,0.57392724,101730.0,101720.0,0.20221342]
[1734234512018,0.57393787,101730.0,101720.0,0.20221342]
[1734234512955,0.57393049,101730.0,101720.0,0.20221342]
[1734234515602,0.57393049,101730.0,101720.0,0.12103051]
[1734234515851,0.57393049,101730.0,101720.0,0.04533051]
[1734234516914,0.57393049,101730.0,101720.0,0.00524441]
[1734234517123,1.1807226,101730.0,101720.0,0.00524441]
[1734234517341,1.09953969,101730.0,101720.0,0.00524441]
[1734234517557,1.01138209,101730.0,101720.0,0.00524441]
[1734234521945,0.87914569,101730.0,101720.0,0.00524441]
[1734234523233,0.70283049,101730.0,101720.0,0.00524441]
[1734234523650,0.96730329,101730.0,101720.0,0.00524441]
[1734234525439,0.70283049,101730.0,101720.0,0.00524441]
[1734234525869,0.48243649,101730.0,101720.0,0.00524441]
[1734234526082,1.29290521,101730.0,101720.0,0.00524441]
[1734234526294,0.96739569,101730.0,101720.0,0.00524441]
[1734234526710,0.70287249,101730.0,101720.0,0.00524441]
[1734234527561,0.96739569,101730.0,101720.0,0.00524441]
[1734234527767,0.70287249,101730.0,101720.0,0.00524441]
[1734234527975,0.87924141,101730.0,101720.0,0.00524441]
[1734234528190,0.70287249,101730.0,101720.0,0.00524441]
[1734234528602,0.7840554,101730.0,101720.0,0.00524441]
[1734234528808,1.08321349,101730.0,101720.0,0.00524441]
[1734234528993,0.96739569,101730.0,101720.0,0.00524441]
[1734234529236,0.70287249,101730.0,101720.0,0.00524441]
[1734234533476,0.75287249,101730.0,101720.0,0.00524441]
[1734234533882,0.70287249,101730.0,101720.0,0.00524441]
[1734234534059,0.75287249,101730.0,101720.0,0.00524441]
[1734234534795,0.75297277,101730.0,101720.0,0.00524441]
[1734234534997,0.70297277,101730.0,101720.0,0.00524441]
[1734234535205,0.75297277,101730.0,101720.0,0.00524441]
[1734234537696,0.70297277,101730.0,101720.0,0.00524441]
[1734234537871,0.75297277,101730.0,101720.0,0.00524441]
[1734234539445,0.75295665,101730.0,101720.0,0.00524441]
[1734234540445,0.83815749,101730.0,101720.0,0.00524441]
[1734234542278,0.83808935,101730.0,101720.0,0.00524441]
[1734234546128,0.98808935,101730.0,101720.0,0.00524441]
[1734234553686,0.269637,101710.0,101700.0,0.015]
[1734234553948,0.96774797,101710.0,101700.0,0.01510788]
[1734234554172,1.066802,101710.0,101700.0,0.01510788]
[1734234554352,0.98378501,101710.0,101700.0,0.01510788]
[1734234555689,0.98368454,101710.0,101700.0,0.01510788]
[1734234556335,0.90250163,101710.0,101700.0,0.01510788]
[1734234557399,0.99060369,101710.0,101700.0,0.01510788]
[1734234557604,0.90250163,101710.0,101700.0,0.01510788]
[1734234558204,0.99060274,101710.0,101700.0,0.01510788]
[1734234558414,1.07178565,101710.0,101700.0,0.01510788]
[1734234558642,0.80151079,101710.0,101700.0,8.8e-07]
[1734234558850,0.79973703,101710.0,101700.0,8.8e-07]
[1734234559482,0.71663703,101710.0,101700.0,8.8e-07]
[1734234559824,0.63534875,101710.0,101700.0,8.8e-07]
[1734234560044,0.80825813,101710.0,101700.0,8.8e-07]
[1734234560235,0.544016,101710.0,101700.0,8.8e-07]
[1734234561514,0.91201131,101710.0,101700.0,0.07840088]
[1734234561934,0.53072719,101710.0,101700.0,0.19966989]
[1734234562301,0.44859642,101710.0,101700.0,0.11848698]
[1734234563358,0.47159642,101710.0,101700.0,0.11848698]
[1734234564176,0.47159642,101710.0,101700.0,0.11857308]
[1734234565007,0.42159642,101710.0,101700.0,0.19975599]
[1734234565436,0.42159642,101710.0,101700.0,0.11857308]
[1734234566505,0.44096701,101710.0,101700.0,0.11857308]
[1734234566934,0.44096701,101710.0,101700.0,0.19975599]
[1734234567341,0.35287891,101710.0,101700.0,0.19975599]
[1734234568539,0.44096701,101710.0,101700.0,0.19975599]
[1734234568962,0.44096701,101710.0,101700.0,0.21161255]
[1734234570642,0.49096701,101710.0,101700.0,0.21161255]
[1734234570867,0.35287891,101710.0,101700.0,0.21161255]
[1734234572276,0.40287891,101710.0,101700.0,0.21161255]